Cogmind - Beta 17.1 @@@ ROGUE MODE // 2026.08.31 @ 00:30:23 Player: H3-MLN Result: Destroyed by Thermal Drone with Thermal Shotgun Performance ------------- Evolutions (3) 1500 Regions Visited (8) 1600 Robots Destroyed (182) 910 Value Destroyed (3801) 3801 Prototype IDs (61) 1220 Alien Tech Used (0) 0 Bonus (1307) 1307 TOTAL SCORE: 10338 Bonus ------- High Alert Combat Kills 90 Follower Combat Kills 43 Hunted by Unchained 1000 Aligned with FarCom 300 Friendly Fire -126 Cogmind --------- Core Integrity 0/700 Matter 248/300 Energy 150/150 System Corruption 12% Temperature Cool (81) Movement Rolling (145) Ox4 Location -7/Factory Parts ------- > --- POWER (1) -------- Micro Nuclear Core > --- PROPULSION (5) --- Wheel Compact Wheel > --- UTILITY (5) ------ Huge Storage Unit Experimental Core Analyzer Centrium Heavy Armor Plating Authchip [Armor] > --- WEAPON (2) ------- Heavy Missile Launcher Chainsword > --- INVENTORY (25) --- Light Nuclear Core Xenon Bombardment Thruster Xenon Bombardment Thruster Xenon Bombardment Thruster Improved Cesium-ion Thruster Large Storage Unit High-capacity Matter Pod (200) Gravity Neutralizer Experimental Targeting Computer Transmission Jammer Improved Light Armor Plating Improved Medium Armor Plating Improved Trap Extractor (5/6 Blade) Improved Trap Extractor (6/6 Dirty Bomb) Decoy Drone Bay (16/16) Guided Plasma Cannon 8R-AWN's Boregun 8R-AWN's Boregun Proton Missile Launcher Heavy Missile Launcher Field Lobotomy Kit (4) Chainsword Peak State ------------ > --- POWER ------------ Light Ion Engine > --- PROPULSION ------- Improved Airjet Gravmag Array Gravmag Array > --- UTILITY ---------- High-capacity Storage Unit Modified TNC Experimental Core Analyzer Centrium Heavy Armor Plating > --- WEAPON ----------- Guided Plasma Cannon Chainsword > --- INVENTORY -------- Improved Airjet High-capacity Matter Pod Gravity Neutralizer Experimental Targeting Computer Improved Medium Armor Plating Hacking Suite Improved Trap Extractor Improved Trap Extractor Decoy Drone Bay 8R-AWN's Boregun 8R-AWN's Boregun Heavy Missile Launcher Field Lobotomy Kit Chainsword Chainsword Spear Deploy-a-Sentry [Rating: 83] Favorites ----------- Power Nuclear Core Engine Heavy Ion Engine Power Core Nuclear Core Propulsion Advanced Treads Treads Advanced Treads Wheel Wheel Hover Unit Improved Airjet Flight Unit VTOL Module Utility Huge Storage Unit Device Experimental Heat Sink Storage Huge Storage Unit Processor Experimental Core Analyzer Hackware EX Chip 1 Protection Light Armor Plating Weapon Heavy Assault Rifle Energy Gun Small Laser Energy Cannon Guided Plasma Cannon Ballistic Gun Heavy Assault Rifle Ballistic Cannon Improved Light Cannon Launcher Grenade Launcher Special Weapon Field Lobotomy Kit Slashing Weapon Chainsword Piercing Weapon Spear Special Melee Weapon Improved Datajack Build | -11 -10 -10 -9 -9 -9 -8 -8 -7 ------- Run | Yrd Mat Min Mat Min Exi Min Mat Fac Slots Evolved 6 | . . . 2 . . . 2 2 Power . | . . . . . . . . . Propulsion 3 | . . . 1 . . . 1 1 Utility 3 | . . . 1 . . . 1 1 Weapon . | . . . . . . . . . Parts Attached 145 | 7 6 9 28 4 12 1 32 46 Power 20 | 1 . 1 3 . 2 1 2 10 Engine 12 | 1 . 1 3 . 1 . . 6 Core 8 | . . . . . 1 1 2 4 Reactor . | . . . . . . . . . Propulsion 40 | 2 1 3 10 . 1 . 9 14 Treads 20 | 2 1 2 9 . 1 . 5 . Leg . | . . . . . . . . . Wheel 8 | . . 1 . . . . . 7 Hover 7 | . . . . . . . 4 3 Flight 5 | . . . 1 . . . . 4 Utility 43 | 2 3 1 6 3 3 . 11 14 Device 9 | 1 . . 2 1 1 . 2 2 Storage 8 | 1 2 . . . 1 . 2 2 Processor 3 | . . . . . . . . 3 Hackware 5 | . . . . . . . 2 3 Protection 18 | . 1 1 4 2 1 . 5 4 Artifact . | . . . . . . . . . Weapon 42 | 2 2 4 9 1 6 . 10 8 Energy Gun 5 | 1 1 2 1 . . . . . Energy Cannon 3 | . . . 2 . 1 . . . Ballistic Gun 15 | 1 1 1 2 . 3 . 7 . Ballistic Cannon 4 | . . . 2 . . . 2 . Launcher 6 | . . 1 2 1 . . . 2 Special Weapon 1 | . . . . . . . . 1 Impact Weapon . | . . . . . . . . . Slashing Weapon 5 | . . . . . 1 . . 4 Piercing Weapon 1 | . . . . . . . . 1 Special Melee Weapon 2 | . . . . . 1 . 1 . Unidentified Prototypes 6 | . . . 3 . . . 3 . Corrupted Parts 1 | . . . . . . . 1 . System Corruption 1 | . . . . . . . 1 . Parts Lost 37 | . 1 6 5 . 3 2 1 19 Power 7 | . . 1 . . . 1 . 5 Propulsion 16 | . 1 3 1 . 1 . . 10 Utility 9 | . . 1 4 . 1 1 . 2 Weapon 5 | . . 1 . . 1 . 1 2 Highest Loss Streak 5 | . 1 5 2 . 2 2 1 4 To Critical Strikes 1 | . . . . . . . . 1 Average Backups 20 | 3 15 21 22 24 20 21 19 17 Power . | . 1 . . . 1 . . . Propulsion 2 | 1 3 3 4 6 2 2 1 1 Utility 9 | . 6 10 9 7 9 12 10 9 Weapon 6 | 1 4 5 7 9 6 5 6 5 Tool/Special . | . . . . . . . . . Unused Backups 46 | . 3 . 9 1 12 . 6 15 Power 8 | . 1 . 1 . 5 . . 1 Propulsion 8 | . 1 . 2 . 1 . 1 3 Utility 18 | . . . 4 1 4 . 2 7 Weapon 11 | . . . 2 . 2 . 3 4 Tool/Special 1 | . 1 . . . . . . . Average Slot Usage (%) 96 | . 99 99 99 100 99 99 96 83 Engine 6 | . 14 13 11 11 6 3 . 2 Core 3 | . . . . . 4 7 9 3 Treads 27 | . 27 24 32 33 33 33 33 . Wheel 1 | . . 2 . . . . . 6 Hover 2 | . . . . . . . 1 17 Device 4 | . 6 . 5 . 4 11 5 4 Storage 10 | . 14 14 11 11 11 11 9 7 Processor 1 | . . . . . . . . 9 Hackware 4 | . . . . . . . 9 11 Protection 12 | . 7 14 16 21 17 11 10 1 Energy Gun 2 | . 13 9 4 . . . . . Energy Cannon 1 | . . . 6 . 2 . . 2 Ballistic Gun 11 | . 14 13 4 10 15 22 15 . Ballistic Cannon 2 | . . . 7 11 . . . . Slashing Weapon 1 | . . . . . . . . 5 Peak Build Rating 83 | 7 9 11 24 27 50 44 55 83 Average Rating 33 | 5 8 9 19 22 36 42 42 63 On Entrance 22 | . 7 9 11 21 25 39 37 55 Avg Prop Armor Cover (%) 7 | . . 9 14 . . . . 5 Naked Turns . | . . . . . . . . . Heaviest Build 118 | 14 90 93 103 107 115 97 109 118 Greatest Support 86 | 40 40 40 66 62 66 66 86 70 Greatest Overweight (x) 9 | . 2 9 9 1 1 1 5 5 Average Overweight (x) 1 | . 1 3 1 1 . 1 . . Largest Inventory Capacity 25 | 8 25 25 25 25 25 25 25 25 Average Capacity 23 | 7 20 25 25 25 23 25 24 20 Most Carried 25 | 7 22 24 25 25 25 25 25 25 Average Carried 21 | 4 15 21 23 24 21 24 22 20 Final Capacity 25 | 8 25 25 25 25 25 25 20 25 Final Carried 25 | 7 21 22 25 25 25 24 20 23 Class Distribution -------------------- 70% | Mutant 18% | Trapper-Mutant 11% | Scavenger-Mutant Dominant Class ---------------- Mutant | -10/Materials Mutant | -10/Mines Mutant | -9/Materials Mutant | -9/Mines Mutant | -9/Exiles Mutant | -8/Mines Mutant | -8/Materials Trapper-Mutant | -7/Factory Resources | -11 -10 -10 -9 -9 -9 -8 -8 -7 ----------- Run | Yrd Mat Min Mat Min Exi Min Mat Fac Matter Collected 5511 | 275 297 175 1150 301 1000 107 1067 1139 Remotely . | . . . . . . . . . Salvage Created 5774 | 126 578 194 1211 224 474 142 854 1971 Parts 422 | 10 36 22 87 28 69 13 52 105 Haulers Intercepted 11 | . 2 . 5 . . . 4 . Recyclers Shooed 3 | . . . 1 . . . 2 . Parts Field Recycled . | . . . . . . . . . Retrieved Matter . | . . . . . . . . . Parts Self-Destructed . | . . . . . . . . . Prevented . | . . . . . . . . . Parts Restored . | . . . . . . . . . Kills | -11 -10 -10 -9 -9 -9 -8 -8 -7 ------- Run | Yrd Mat Min Mat Min Exi Min Mat Fac Combat Hostiles Destroyed 111 | . 12 9 29 14 5 2 14 26 Melee 8 | . . . . . . . . 8 Guns 42 | . 12 2 11 3 1 2 10 1 Cannons 28 | . . . 12 2 1 . . 13 AOE 33 | . . 7 6 9 3 . 4 4 Classes Destroyed 16 | 2 5 2 1 . 3 . 1 2 Worker 15 | . . 1 1 . . 2 3 8 Builder 9 | . . . 4 . . . . 5 Tunneler 8 | 2 . 1 1 1 . 1 . 2 Hauler 11 | . 2 . 5 . . . 4 . Recycler 14 | 1 2 1 1 . . . 1 8 Operator 5 | . 1 . 3 . . . 1 . Drone 8 | . . . . . . . . 8 Turret 1 | . . . . . 1 . . . Watcher 3 | . 1 . 2 . . . . . Swarmer 43 | . 6 7 12 8 . . 4 6 Grunt 32 | . 6 . 12 6 . 2 3 3 Brawler 1 | . . . . . . . 1 . Sentry 16 | . . 2 5 . . . 6 3 Programmer 5 | . . . . . . . . 5 Zionite 7 | . . . . . 7 . . . Assembled 4 | . . . . . 4 . . . Best Kill Streak 7 | 2 4 3 7 3 3 2 4 7 Combat Bots Only 6 | . 4 3 6 3 3 2 4 3 Max Kills in Single Turn 4 | 1 1 3 4 3 2 1 4 3 Gunslinging . | . . . . . . . . . Exploded 4 | . . 3 4 3 2 . 4 1 Melee 1 | . . . . . . . . 1 Uniques/NPCs Destroyed 5 | . . . . . 4 . . 1 8R-AWN (-9/Exiles) EX-DEC (-9/Exiles) EX-BIN (-9/Exiles) EX-HEX (-9/Exiles) 7R-MNS (-7/Factory) Combat | -11 -10 -10 -9 -9 -9 -8 -8 -7 -------- Run | Yrd Mat Min Mat Min Exi Min Mat Fac Hostile Shots Fired 788 | . 67 53 113 32 57 31 75 360 Missed 191 | . 12 8 29 13 5 5 23 96 Hits 597 | . 55 45 84 19 52 26 52 264 Melee 1 | . . . . . . . 1 . Projectile 596 | . 55 45 84 19 52 26 51 264 AOE 3 | . . . 1 . . . . 2 Critical Strikes 84 | . . 4 . 1 25 1 4 49 Part Disruptions 1 | . . . . . 1 . . . Damage Taken 8595 | . 547 614 892 253 928 443 799 4119 Core 1235 | . 73 104 108 45 95 75 29 706 Absorbed by Shields 72 | . . . 72 . . . . . Regen/Repaired (Parts) 284 | . . . 91 . . . 193 . Core Remaining (%) 60 | 100 . 29 . . . 19 94 . Volleys Fired 489 | 5 57 24 108 20 123 12 59 81 Largest 2 | 2 2 2 2 2 1 2 2 1 Hottest 120 | 70 70 80 101 56 120 53 120 120 Shots Fired 741 | 10 114 41 204 32 123 24 113 80 Gun 520 | 10 114 34 84 12 107 24 106 29 Cannon 185 | . . . 115 12 11 . 6 41 Launcher 35 | . . 7 5 8 5 . 1 9 Special 1 | . . . . . . . . 1 Kinetic 464 | 5 57 9 101 24 107 24 108 29 Thermal 222 | 5 57 25 79 . 11 . 4 41 Explosive 33 | . . 7 5 8 5 . 1 7 Electromagnetic 21 | . . . 19 . . . . 2 Robot Hit Streak 29 | 7 14 12 10 14 6 8 24 29 Robot Miss Streak 9 | . 4 1 4 3 9 1 3 2 Penetration Max 1 | . . . . . 1 . . . Secondary Targets 7 | . 4 . 1 . . . 2 . Max Gunslinging Chain 1 | . 1 . 1 . . . 1 . Shots Hit Robots 539 | 7 77 30 128 15 66 18 86 112 Core Hits 269 | 4 35 16 61 21 32 9 33 58 Critical Kills 4 | . . . 1 . 2 . . 1 Critical Parts Destroyed 14 | . 1 . . . 7 1 2 3 Critical Strikes 34 | . 2 1 6 . 11 1 2 11 Burn 5 | . 1 1 3 . . . . . Meltdown 1 | . . . 1 . . . . . Destroy 19 | . 1 . . . 9 1 2 6 Blast 2 | . . . 2 . . . . . Sever 7 | . . . . . 2 . . 5 Melee Attacks 157 | . . . . . 27 . 4 126 Impact . | . . . . . . . . . Slashing 139 | . . . . . 23 . 2 114 Piercing 5 | . . . . . . . . 5 Sneak Attacks 34 | . . . . . 4 . 4 26 Combat Hostiles . | . . . . . . . . . Follow-up Attacks 7 | . . . . . . . . 7 Damage Inflicted 15198 | 70 778 816 2893 1074 2069 309 1739 5450 Guns 4669 | 70 774 312 793 104 818 298 1315 185 Cannons 3443 | . . . 1654 134 391 . 25 1239 Explosions 3069 | . . 504 446 786 248 . 234 851 Melee 3934 | . . . . . 612 . 147 3175 Ramming 83 | . 4 . . 50 . 11 18 . Kinetic 4502 | 22 302 73 1226 238 818 298 1340 185 Thermal 3500 | 48 472 239 974 137 391 . . 1239 Explosive 2768 | . . 504 374 649 248 . 234 759 Electromagnetic 411 | . . . 319 . . . . 92 Impact . | . . . . . . . . . Slashing 3934 | . . . . . 612 . 147 3175 Piercing . | . . . . . . . . . Highest Corruption 12 | . . . . . . . 1 12 Average Corruption 4 | . . . . . . . 1 4 Corruption Purged . | . . . . . . . . . Corruption Blocked . | . . . . . . . . . Effects 38 | . . . . . . . . 38 Message Errors 11 | . . . . . . . . 11 Matter Fused 9 | . . . . . . . . 9 Heat Flow Errors 1 | . . . . . . . . 1 Energy Discharges 3 | . . . . . . . . 3 Parts Rejected 1 | . . . . . . . . 1 Data Loss (minor) 7 | . . . . . . . . 7 Data Loss (major) 2 | . . . . . . . . 2 Misfires 1 | . . . . . . . . 1 Alerts 2 | . . . . . . . . 2 Weapon Failures 1 | . . . . . . . . 1 Overload Shots . | . . . . . . . . . Overflow Damage 726 | . . 41 90 39 21 . 67 468 Projectiles 75 | . . . 25 6 . . . 44 Explosions 176 | . . 41 65 33 21 . . 16 Melee 475 | . . . . . . . 67 408 Knockbacks 12 | . . . 10 2 . . . . Impact . | . . . . . . . . . Kinetic 12 | . . . 10 2 . . . . Secondary . | . . . . . . . . . Self-Inflicted Damage 224 | . . 49 39 66 9 . 14 47 Shots 10 | . . 2 1 2 1 . 1 3 Rammed 10 | . 1 . . 6 . . 3 . Targets Rammed 12 | . 1 . . 6 . 1 4 . Kicked . | . . . . . . . . . Crushed 2 | . . . . . . 1 1 . Highest Temperature 328 | 50 140 318 326 41 234 1 178 328 Average Temperature 73 | 23 42 115 65 17 93 1 32 101 Received Heat Transfer 2256 | . 186 225 256 78 80 252 369 810 Effects 7 | . . 1 1 . . . . 5 Energy Bleed 1 | . . 1 . . . . . . Interference 5 | . . . . . . . . 5 Short Circuit 1 | . . . 1 . . . . . Siege Activations . | . . . . . . . . . Martial Activations . | . . . . . . . . . Shielding Activations . | . . . . . . . . . Robots Disrupted . | . . . . . . . . . Combat Hostiles . | . . . . . . . . . Robots Corrupted . | . . . . . . . . . Combat Hostiles . | . . . . . . . . . Parts Fried . | . . . . . . . . . Impact Corruptions . | . . . . . . . . . Robots Melted 1 | . . . 1 . . . . . Combat Hostiles . | . . . . . . . . . Parts Melted 10 | . 2 1 5 . . . . 2 Heat Transferred 8025 | 148 1230 672 2146 149 880 . . 2800 Parts Sabotaged . | . . . . . . . . . Parts Stolen . | . . . . . . . . . Parts Stripped . | . . . . . . . . . Power Chain Reactions . | . . . . . . . . . Alert | -11 -10 -10 -9 -9 -9 -8 -8 -7 ------- Run | Yrd Mat Min Mat Min Exi Min Mat Fac Maximum Alert Level 2 | . . 1 2 1 . . . 2 Low Security (%) 87 | 100 100 92 67 93 . 100 100 66 Level 1 8 | . . 7 25 6 . . . 18 Level 2 3 | . . . 6 . . . . 15 Level 3 . | . . . . . . . . . Level 4 . | . . . . . . . . . Level 5 . | . . . . . . . . . High Security . | . . . . . . . . . Max Security . | . . . . . . . . . Peak Influence 520 | 10 80 249 411 232 . 40 131 520 Initial 155 | . . . 24 155 . . 5 59 Average 83 | 1 16 84 177 115 . 17 24 147 Influence Increases 4261 | 15 376 486 974 507 . 115 510 1278 Destroy 0b10 Robot/C 1960 | . 240 180 580 300 . 40 280 340 Destroy 0b10 Robot/NC 330 | 15 30 15 85 10 . 15 45 115 Destroy Leader 458 | . 56 20 164 30 . . 88 100 Allied During Kill 18 | . . . . 18 . . . . Successful Hack 233 | . 20 . 21 . . . 64 128 Select Force Hacks 30 | . 30 . . . . . . . Disable Machine 420 | . . 195 60 90 . . 15 60 Anti-Garrison Action 200 | . . . . . . . . 200 Destroy Structure 237 | . . 76 34 59 . . 18 50 Partial Spotted 60 | . . . . . . . . 60 Lose Combat Pursuer 315 | . . . 30 . . 60 . 225 Influence Decreases 3785 | 15 376 424 637 793 113 100 394 933 Entered New Map 477 | . . . 38 244 113 . 10 72 Time Decay 2797 | 15 366 374 569 489 . 100 347 537 Lost Part 254 | . 10 50 30 . . . 10 154 Lost Ally 80 | . . . . 60 . . . 20 Purge Threat 177 | . . . . . . . 27 150 Squads Dispatched 22 | . 2 . 6 1 . . 1 12 Investigation 8 | . 1 . 2 . . . . 5 Extermination 5 | . . . . . . . . 5 Reinforcement 8 | . 1 . 4 . . . 1 2 Assault 1 | . . . . 1 . . . . Garrison . | . . . . . . . . . Intercept . | . . . . . . . . . Searches Triggered . | . . . . . . . . . Unchained Authorized 1 | . . . . . . . . 1 Construction Impeded 3 | . . . 1 . . . . 2 Haulers Reinforced . | . . . . . . . . . Active Scanning Responses . | . . . . . . . . . Cargo Convoy Interrupts . | . . . . . . . . . Stealth | -11 -10 -10 -9 -9 -9 -8 -8 -7 --------- Run | Yrd Mat Min Mat Min Exi Min Mat Fac Distress Signals 8 | . 2 1 3 . . . 2 . Communications Jammed . | . . . . . . . . . Distress Signals . | . . . . . . . . . Times Spotted 212 | . 25 9 50 18 20 6 18 66 Peak Tracking Total 9 | . 5 3 7 5 9 3 4 6 Tactical Retreats 25 | . . . 2 . 8 4 . 11 Traps | -11 -10 -10 -9 -9 -9 -8 -8 -7 ------- Run | Yrd Mat Min Mat Min Exi Min Mat Fac Traps Triggered 4 | . 2 . 1 . . . . 1 Indirectly . | . . . . . . . . . Trap Hack Attempts 49 | . . . . . . . 44 5 Triggered . | . . . . . . . . . Disarmed 2 | . . . . . . . 1 1 Reprogrammed 5 | . . . . . . . 4 1 Reused . | . . . . . . . . . Traps Extracted 11 | . . . . 6 . . 4 1 Installed . | . . . . . . . . . Triggered . | . . . . . . . . . Most Traps Carried 11 | . . . . 6 6 6 10 11 Machines | -11 -10 -10 -9 -9 -9 -8 -8 -7 ---------- Run | Yrd Mat Min Mat Min Exi Min Mat Fac Machines Disabled 45 | . . 13 4 6 17 . 1 4 Max in Single Turn 12 | . . 12 1 2 1 . 1 1 Garrison Access 3 | . . . . . . . 1 2 Machines Repaired . | . . . . . . . . . Machines Dismantled . | . . . . . . . . . Machines Sabotaged . | . . . . . . . . . Overloaded Fab Kills . | . . . . . . . . . Hacking | -11 -10 -10 -9 -9 -9 -8 -8 -7 --------- Run | Yrd Mat Min Mat Min Exi Min Mat Fac Machines Accessed 66 | . 6 1 10 1 2 . 18 28 Terminals 35 | . 5 . 6 . . . 11 13 Fabricators 4 | . . . . . . . . 4 Repair Stations 5 | . . . 2 . . . 2 1 Recycling Units 7 | . 1 . . . . . 2 4 Scanalyzers 7 | . . . 2 . . . 2 3 Garrison Access 4 | . . . . . . . 1 3 Total Hacks 309 | . 16 1 32 1 5 . 65 189 Successful 239 | . 6 1 23 1 5 . 47 156 Failed 69 | . 10 . 8 . . . 18 33 Catastrophic 8 | . 1 . 1 . . . . 6 Database Lockouts 1 | . . . 1 . . . . . Manual 96 | . 11 . 12 . 1 . 31 41 Terminals 115 | . 15 . 16 . . . 43 41 Fabricators 121 | . . . . . . . . 121 Repair Stations 15 | . . . 6 . . . 7 2 Recycling Units 15 | . 1 . . . . . 4 10 Scanalyzers 27 | . . . 10 . . . 10 7 Garrison Access 9 | . . . . . . . 1 8 Terminal Hacks 37 | . 5 1 3 1 5 . 14 8 Record 4 | . . . . . 4 . . . Part Schematic 2 | . 1 . . . . . 1 . Robot Schematic 1 | . 1 . . . . . . . Robot Analysis 3 | . 2 . . . . . 1 . Prototype ID Bank 3 | . 1 . . . . . 2 . Open Door 2 | . . 1 . 1 . . . . Branch Access Points 2 | . . . 1 . . . 1 . Machine Index 1 | . . . . . . . . 1 Terminal Index 1 | . . . . . . . 1 . Unreport Threat 3 | . . . . . . . 2 1 Locate Traps 4 | . . . 1 . . . 1 2 Hauler Manifests 2 | . . . 1 . . . 1 . Registered Components 2 | . . . . . . . 1 1 Registered Prototypes 2 | . . . . . . . 1 1 Zone Layout 4 | . . . . . . . 2 2 Proto ID Catalog 1 | . . . . . 1 . . . Fabricator Hacks 117 | . . . . . . . . 117 Load Schematic 115 | . . . . . . . . 115 Build 2 | . . . . . . . . 2 Repair Station Hacks 14 | . . . 6 . . . 7 1 Scan Component 8 | . . . 3 . . . 4 1 Repair 6 | . . . 3 . . . 3 . Recycling Unit Hacks 5 | . . . . . . . 3 2 Report Inventory 3 | . . . . . . . 2 1 Retrieve Components 2 | . . . . . . . 1 1 Scanalyzer 19 | . . . 8 . . . 7 4 Insert Component 6 | . . . 2 . . . 3 1 Analyze 6 | . . . 1 . . . 4 1 Retrieve Study 7 | . . . 5 . . . . 2 Garrison Access Hacks 2 | . . . . . . . 1 1 Seal Access 2 | . . . . . . . 1 1 Unauthorized Hacks 45 | . 1 . 6 . . . 15 23 Terminals 33 | . . . 6 . . . 14 13 Track 7 | . . . . . . . 3 4 Assimilate 1 | . . . . . . . 1 . Botnet 7 | . . . 1 . . . 3 3 Operators 2 | . . . . . . . 1 1 Skim 16 | . . . 5 . . . 6 5 Fabricators 2 | . . . . . . . . 2 Prioritize 1 | . . . . . . . . 1 Recompile 1 | . . . . . . . . 1 Repair Stations . | . . . . . . . . . Recycling Units 6 | . 1 . . . . . 1 4 Recyclers 1 | . . . . . . . . 1 Mask 4 | . . . . . . . 1 3 Tunnel 1 | . 1 . . . . . . . Scanalyzers . | . . . . . . . . . Garrison Access 4 | . . . . . . . . 4 Broadcast 1 | . . . . . . . . 1 Intercept 1 | . . . . . . . . 1 Watchers 1 | . . . . . . . . 1 Jam 1 | . . . . . . . . 1 Data Cores Recovered . | . . . . . . . . . Used . | . . . . . . . . . Hacking Detections 51 | . 5 . 8 . . . 15 23 Full Trace Events 5 | . 1 . 1 . . . . 3 Feedback Events . | . . . . . . . . . Feedback Blocked . | . . . . . . . . . Robot Schematics Acquired 1 | . 1 . . . . . . . Robots Built . | . . . . . . . . . Authchips . | . . . . . . . . . Time . | . . . . . . . . . Total Robot Build Rating . | . . . . . . . . . Part Schematics Acquired 6 | . 1 . 1 . . . 3 1 Parts Built 2 | . . . . . . . . 2 Authchips . | . . . . . . . . . Time 94 | . . . . . . . . 94 Total Part Build Rating 10 | . . . . . . . . 10 Part Studies Acquired 7 | . . . 5 . . . . 2 Parts Repaired 6 | . . . 3 . . . 3 . Time 306 | . . . 138 . . . 168 . Parts Recycled . | . . . . . . . . . Recycled Matter . | . . . . . . . . . Retrieved Matter . | . . . . . . . . . Retrieved Components 13 | . . . . . . . 10 3 Parts Scanalyzed 4 | . . . 1 . . . 2 1 Part Schematics Acquired 4 | . . . 1 . . . 2 1 Parts Damaged . | . . . . . . . . . Bothacking | -11 -10 -10 -9 -9 -9 -8 -8 -7 ------------ Run | Yrd Mat Min Mat Min Exi Min Mat Fac Used RIF Installer . | . . . . . . . . . Robots Hacked 11 | . . . . . 4 . . 7 Non-combat 9 | . . . . . 3 . . 6 Combat 2 | . . . . . 1 . . 1 Robot Hacks Applied 11 | . . . . . 4 . . 7 parse_system 6 | . . . . . 4 . . 2 no_distress 1 | . . . . . . . . 1 find_chute 2 | . . . . . . . . 2 find_fabricator 1 | . . . . . . . . 1 find_recycling 1 | . . . . . . . . 1 Relay Couplers Released 4 | . . . . . . . . 4 Programmers 4 | . . . . . . . . 4 Fabnet Peak Effective % . | . . . . . . . . . Robots Rewired . | . . . . . . . . . Allies Hacked . | . . . . . . . . . Hacks Repelled . | . . . . . . . . . Allies | -11 -10 -10 -9 -9 -9 -8 -8 -7 -------- Run | Yrd Mat Min Mat Min Exi Min Mat Fac Total Allies 6 | . . . . 4 . . 1 1 Largest Group 3 | . . . . 3 1 . 1 1 Highest-Rated Group 40 | . . . . 40 31 . 10 37 Highest-Rated Ally 37 | . . . . 31 31 . 10 37 Total Orders 4 | . . . . . . . 2 2 STAY 2 | . . . . . . . 1 1 FOLLOW 2 | . . . . . . . 1 1 Ally Attacks 35 | . . . . 22 8 . . 5 Total Damage 397 | . . . . 262 64 . . 71 Kills 3 | . . . . 2 1 . . . Allies Corrupted . | . . . . . . . . . Allies Melted 1 | . . . . . . . . 1 Turrets Deployed 1 | . . . . . . . . 1 Field Lobotomies 1 | . . . . . . . . 1 Intel | -11 -10 -10 -9 -9 -9 -8 -8 -7 ------- Run | Yrd Mat Min Mat Min Exi Min Mat Fac Active Infowar (turns) 3017 | 29 726 . 1013 . . . . 1249 Sensors 587 | . . . . . . . . 587 Seismic 1768 | 29 726 . 1013 . . . . . T.N.C. 630 | . . . . . . . . 630 Jamming 56 | . . . . . . . . 56 Robot Analysis Total 3 | . 2 . . . . . 1 . Derelict Logs Recovered 2 | . . 1 . 1 . . . . Drone Launches . | . . . . . . . . . Drone Recoveries . | . . . . . . . . . Exploration | -11 -10 -10 -9 -9 -9 -8 -8 -7 ------------- Run | Yrd Mat Min Mat Min Exi Min Mat Fac Turns Passed 17655 | 130 1567 1701 2499 1301 2687 273 5042 2455 Spaces Moved 8233 | 67 522 556 920 565 909 102 2121 2471 Core 7 | 7 . . . . . . . . Treads 5251 | 60 522 397 886 565 909 102 1810 . Legs . | . . . . . . . . . Wheels 742 | . . 159 34 . . . . 549 Hover 2233 | . . . . . . . 311 1922 Flight . | . . . . . . . . . Fastest Speed 40 | 50 160 200 200 208 150 225 45 40 Average Speed 174 | 148 259 289 211 208 214 225 211 60 Slowest Speed 480 | 160 320 480 305 208 225 225 465 350 Overloaded Moves . | . . . . . . . . . Propulsion Burnouts . | . . . . . . . . . Robots Hopped . | . . . . . . . . . Potential Cave-ins 2 | . . . . . . . . 2 Cave-ins Triggered . | . . . . . . . . . Exploration Rate (%) 71 | 5 88 99 74 96 90 29 94 67 Regions Visited 8 Branch Regions 4 Pre-discovered Areas 9 | . 1 . 2 . 1 . 2 3 Known Exits Taken 2 | . . . 1 . . . 1 . Unknown Exits Taken 6 | 1 1 1 . 1 1 1 . . Scrap Searched 2 | . . 1 . 1 . . . . Spaces Dug 27 | . . . . . 1 . 2 24 Terrain Destroyed 309 | . . 90 32 66 48 . 17 56 Melee 21 | . . . . . 1 . . 20 Projectile 41 | . . . 2 1 26 . 5 7 AOE 243 | . . 90 30 65 20 . 12 26 Terrain Rammed . | . . . . . . . . . Walls Destroyed . | . . . . . . . . . Machines Disabled . | . . . . . . . . . Actions | -11 -10 -10 -9 -9 -9 -8 -8 -7 --------- Run | Yrd Mat Min Mat Min Exi Min Mat Fac Total 10627 | 85 634 605 1280 654 1496 120 2586 3167 Wait 1103 | . 21 5 157 46 347 2 212 313 Move 8225 | 66 521 555 919 564 908 101 2120 2471 Hop . | . . . . . . . . . Pick Up 164 | 7 19 7 29 4 33 . 32 33 Fast Attach 55 | 7 3 . 8 . . 1 18 18 Attach 59 | . 1 7 7 . 6 1 7 30 Detach 22 | . . . . . 2 . 3 17 Swap 131 | . 5 5 20 9 18 2 28 44 Drop 166 | . 6 2 32 5 32 . 55 34 Fire 489 | 5 57 24 108 20 123 12 59 81 Melee 150 | . . . . . 27 . 4 119 Ram . | . . . . . . . . . Kick . | . . . . . . . . . Crush 12 | . 1 . . 6 . 1 4 . Escape Stasis 2 | . . . . . . . . 2 Rewire . | . . . . . . . . . Trap 49 | . . . . . . . 44 5 Miscellaneous . | . . . . . . . . . Route ------- -11/Scrapyard -10/Materials (discovered 5 exits: *Mat x3 / *Min / [*Sub]) -10/Mines (discovered 3 exits: *Mat x2 / [*Sub]) -9/Materials (discovered 5 exits: *Mat x3 / *Min x2) -9/Mines (discovered 3 exits: *Mat x2 / *Exi) -9/Exiles (discovered 2 exits: [*Min x2]) -8/Mines -8/Materials (discovered 4 exits: *Fac x3 / *Sto) -7/Factory (discovered 5 exits: *Fac x3 / *Low x2) History --------- Turn | Location | Event 8 | -11/Scrapyard | Discovered new exit (range 13) 131 | -11/Scrapyard | Entered Materials 278 | -10/Materials | Discovered new exit (range 13) 300 | -10/Materials | Build established: Mutant 564 | -10/Materials | Discovered new exit (range 16) 810 | -10/Materials | Build established: Scavenger-Mutant 1161 | -10/Materials | Build established: Mutant 1358 | -10/Materials | Discovered new exit (range 10) 1536 | -10/Materials | Discovered new exit (range 7) 1637 | -10/Materials | Discovered new exit (range 8) 1698 | -10/Materials | Entered Mines 1750 | -10/Mines | Met a Derelict bent on vengeance 1878 | -10/Mines | Discovered new exit (range 10) 2079 | -10/Mines | Discovered new exit (range 13) 2086 | -10/Mines | Received a Rocket Launcher from a helpful Derelict 2219 | -10/Mines | Found the Drone Emporium 2234 | -10/Mines | Learned 2 Materials zone layouts 2244 | -10/Mines | Found Prototype Device 2626 | -10/Mines | Discovered new exit (range 8) 2688 | -10/Mines | Build established: Scavenger-Mutant 3005 | -10/Mines | Core integrity fell below 50% 3049 | -10/Mines | Lost 5 parts (1p2n1u1w) 3310 | -10/Mines | Build established: Mutant 3399 | -10/Mines | Entered Materials 3399 | -9/Materials | Evolved 2 slots: Propulsion x1, Utility x1 3570 | -9/Materials | Identified Decoy Drone Bay 3585 | -9/Materials | Central database locked down 3674 | -9/Materials | Discovered new exit (range 5) 3701 | -9/Materials | Build established: Scavenger-Mutant 3954 | -9/Materials | Discovered new exit (range 10) 4049 | -9/Materials | Discovered new exit (range 13) 4116 | -9/Materials | Repaired Hvy. Assault Rifle+ 4217 | -9/Materials | Build established: Mutant 4368 | -9/Materials | Discovered new exit (range 16) 4606 | -9/Materials | Repaired Broken Adv. Treads 4660 | -9/Materials | Repaired Broken Adv. Treads? 5035 | -9/Materials | Identified exit to Mines 5793 | -9/Materials | Learned 4 Materials zone layouts 5814 | -9/Materials | Loaded intel: 72 machine locations 5826 | -9/Materials | Learned 2 Materials zone layouts 5898 | -9/Materials | Entered Mines 6029 | -9/Mines | Assisted by bots powering up and referring to "LRC-V3" 6068 | -9/Mines | Discovered new exit (range 4) 6514 | -9/Mines | Discovered new exit (range 5) 6520 | -9/Mines | Met a Derelict who couldn't figure out how to use a Trap Extractor 6922 | -9/Mines | Met a Derelict testing a Signal Generator 7133 | -9/Mines | Deemed a non-threat by the Exiles lab entrance 7191 | -9/Mines | Discovered new exit (range 5) 7199 | -9/Mines | Entered Exiles 7199 | -9/Exiles | Accompanied by 1 ally 7227 | -9/Exiles | Discovered new exit (range 15) 7267 | -9/Exiles | Met 8R-AWN 7304 | -9/Exiles | Met EX-HEX 7405 | -9/Exiles | Met EX-DEC 7463 | -9/Exiles | Learned location of Zion (-7) 7504 | -9/Exiles | Met EX-BIN 7529 | -9/Exiles | Build established: Trapper-Mutant 7535 | -9/Exiles | Aligned with FarCom system 7537 | -9/Exiles | Given EX-Vault access code 7587 | -9/Exiles | Opened EX-Vault 7600 | -9/Exiles | Found Field Lobotomy Kit 7608 | -9/Exiles | Found Modified TNC 7613 | -9/Exiles | Found Gui. Plasma Cannon 7656 | -9/Exiles | Warned to stay clear of 0b10 Research branches 7956 | -9/Exiles | Attacked by the Exiles 8065 | -9/Exiles | Core integrity fell below 50% 8121 | -9/Exiles | Found 8R-AWN's Boregun 8139 | -9/Exiles | Found 8R-AWN's Boregun 8261 | -9/Exiles | Build established: Mutant 8579 | -9/Exiles | Destroyed 8R-AWN 8693 | -9/Exiles | Found Exp. Targeting Computer 8807 | -9/Exiles | Destroyed EX-DEC 8902 | -9/Exiles | Found Deploy-a-Sentry 8905 | -9/Exiles | Found Exp. Core Analyzer 8942 | -9/Exiles | Destroyed EX-BIN 9048 | -9/Exiles | Destroyed EX-HEX 9865 | -9/Exiles | Discovered new exit (range 10) 9886 | -9/Exiles | Stole four prototypes: Modified TNC, Gui. Plasma Cannon, Field Lobotomy Kit, Deploy-a-Sentry 9886 | -9/Exiles | Entered Mines 9957 | -8/Mines | Core integrity fell below 20% 10006 | -8/Mines | Found a Scrap Suit stashed away for nefarious purposes 10140 | -8/Mines | Discovered new exit (range 5) 10159 | -8/Mines | Entered Materials 10159 | -8/Materials | Evolved 2 slots: Propulsion x1, Utility x1 10160 | -8/Materials | Identified exit to Storage 10160 | -8/Materials | Identified exit to Factory 10648 | -8/Materials | Learned location of 1 exit from Storage 10687 | -8/Materials | Learned location of Storage (-8) 10714 | -8/Materials | Learned Factory recycling unit intel 10736 | -8/Materials | Learned Storage stockpile data 10737 | -8/Materials | Learned Storage security intel 10745 | -8/Materials | Learned location of 1 exit from Recycling 10823 | -8/Materials | Met 7R-MNS 10828 | -8/Materials | Learned Storage stockpile data 12009 | -8/Materials | Repaired Gravity Neutralizer 12366 | -8/Materials | Discovered exit to Factory (range 16) 12779 | -8/Materials | Repaired Gravmag Array 14443 | -8/Materials | Repaired Arm. Treads 15201 | -8/Materials | Entered Factory 15201 | -7/Factory | Accompanied by 1 ally 15201 | -7/Factory | Evolved 2 slots: Propulsion x1, Utility x1 15202 | -7/Factory | Caught up to 7R-MNS 15202 | -7/Factory | Identified exit to Lower Caves 15203 | -7/Factory | Loaded intel: 6 recycling unit locations 15388 | -7/Factory | Build established: Trapper-Mutant 15616 | -7/Factory | Discovered new exit (range 10) 15735 | -7/Factory | Watched by a mysterious "MATRIX" hacker 15800 | -7/Factory | Attacked by 7R-MNS 15923 | -7/Factory | 7R-MNS lamented failing the tripod run 15923 | -7/Factory | Destroyed 7R-MNS 15928 | -7/Factory | Found Centrium Heavy Armor Plating 16094 | -7/Factory | Unchained authorized (QV-33N) 16183 | -7/Factory | Fabricated Gravmag Array (x1) 16259 | -7/Factory | Discovered new exit (range 10) 16678 | -7/Factory | Fabricated Gravmag Array? 16684 | -7/Factory | Learned location of 1 exit from Proximity Caves 16745 | -7/Factory | Lost 4 parts (3n1u) 16772 | -7/Factory | Learned Extension emergency access door positions 16787 | -7/Factory | Discovered new exit (range 5) 16792 | -7/Factory | Identified exit to Factory 17139 | -7/Factory | Targeted by mysterious "MATRIX" hacker 17150 | -7/Factory | Core integrity fell below 50% 17405 | -7/Factory | Gui. Plasma Cannon suddenly broke down 17606 | -7/Factory | System corruption reached 10% 17608 | -7/Factory | Core integrity fell below 20% 17637 | -7/Factory | Spotted QV-33N 17640 | -7/Factory | Lost 3 parts (2n1w) 17647 | -7/Factory | DAS Turret deployed 17648 | -7/Factory | Assimilated P-60 Hacker with FLK Orb 17656 | -7/Factory | Destroyed by Thermal Drone with Thermal Shotgun Last Messages --------------- 17636_ U-05 Engineer lays Concrete. QV-33N: "So you're not dead yet after all." 17638_ K-01 Serf collects debris. 17638_ U-05 Engineer lays Concrete. 17642_ K-01 Serf collects debris. 17643_ Arm. Huge Wheel destroyed. 17645_ System corrupted: Matter fused (-9). 17645_ Dropped Deploy-a-Sentry. 17647_ DAS Turret deployed. 17647_ Critical hit (Destroy). 17648_ P-60 Hacker assimilated. 17648_ Thermal Drone knocked back. 17649_ Com. Wheel destroyed. 17650_ DAS Turret suffers critical hit (Burn). 17650_ DAS Turret critical meltdown. 17652_ Kinetic Drone destroyed. 17653_ ALERT: Construction progress impeded, dispatching reinforcements to local area. Antisys Drone disintegrates. Thermal Drone disintegrates. Map ----- +----------------------------------------------------+ | ##????????# #???????????#| # #? | | ########### #???????????# # ! #? | | *## # """ #???????????# #+##+####### | | ## = # """ #???????????# # | | !## + """ #??????###### # | | + # #??????# + + | | #^ # """ #??????# #### # """ """ " | | + !!! # """ ########+#### + """ """ " | | ##### !! # """ ## # # """ """ " | | ????# !! # ## """" # # | | ????#= # ## """" # # """ """ " | | #########+######+#### """" # # """ """ " | | r % # """" # # """ """ " | | # """" ######## | | + """" #??????# | | # % #??????# ###### | | + [*"""" ######## # | | #####+######## ##%!*"""" # ^ # | | #?? ?????# ##%%!"" " # ^ + w | | # ???# ##*% + ^ # | | # #??# ## ! # ^ # """ | | # #??# ## # ^ # """ | | # #??# ## t% ###### """ | | ### # #??# ########/ n ???# | | ??# # #??# % % ???# """ | | ??# # #??# @ !???# "?" | | ??# ###########??# # "??? | | ###/############## """" # ??? | | # # # "?????##??? | | # # #####+##### ###???????????? | | # # #???????????#?????????????? | | # #p #?????????????????????????? | | # +% #?????????????????????????? | | # [[! #% #?????????????????????????? | | # [[! # % #?????????????????????????? | | # [!! # % #?????????????????????????? | | # = # ^^^^#?????????????????????????? | | ################## #?????????????????????????? | | ???? #?????????????????????????? | | ???? ##############????????????? | | ???? # ! #????????????? | | ???? % # #????????????? | | ???? # """""" #????????????? | | ?????############# # """""" #????????????? | | ????????????????# |%# """""" #????????????? | | ????????????????#T !=# """""" #????????????? | | ??????############ [*+ ""#????????????? | | ??????# # # """""" ""#????????????? | | ??????# # # """""" T"#????????????? | | ??????# " # """""" ""#????????????? | +----------------------------------------------------+ Best States ------------- Heat Dissipation 57 Energy Generation 19 Energy Capacity 310 Matter Stores 300 Matter Capacity 300 Sight Range 16 Robot Scan Range 15 Terrain Scan Density 10 Jamming Range 12 Additional Mass Support 12 Armor Coverage 600 Evasion (%) 57 Core Analysis 8 Recoil Reduction 4 Offensive Hacking 27 Authchip Count 1 Trap Extractor Capacity 6 Item Schematics ----------------- Hcp. Storage Unit | -10/Materials | Hacked Datajack | -9/Materials | Scanalyzed Gravmag Array | -8/Materials | Scanalyzed Exp. Core Analyzer | -8/Materials | Scanalyzed Hacking Suite | -8/Materials | Hacked Centrium Heavy Armor Plating | -7/Factory | Scanalyzed Robot Schematics ------------------ M-13 Machinist | -10/Materials | Hacked Fabricated ------------ Gravmag Array | x1 | -7/Factory Gravmag Array | x1 | -7/Factory Repaired ---------- Hvy. Assault Rifle | 51% | -9/Materials Adv. Treads | 86% | -9/Materials | Broken Adv. Treads | 92% | -9/Materials | Broken Gravity Neutralizer | 37% | -8/Materials Gravmag Array | 66% | -8/Materials Arm. Treads | 61% | -8/Materials Studied --------- Hvy. Assault Rifle | -9/Materials | Hacked Wheel | -9/Materials | Hacked Lgt. Treads | -9/Materials | Hacked Lgt. Ion Engine | -9/Materials | Hacked Datajack | -9/Materials | Hacked Gravmag Array | -7/Factory | Hacked Chainsword | -7/Factory | Hacked Alien Tech Used ----------------- None Achievements -------------- None Challenges ------------ None Game ------ Seed ThermalWarpThruster Manual? 0 Play Time 03:02:04 Cumulative 1757.1 hours Start 2026.08.30 @ 19:18:55 End 2026.08.31 @ 00:30:23 Sessions 3 Manual Loads 0 Difficulty Rogue Special Mode None Game No. 532 Rogue 524 Adventurer 4 Explorer 4 Win Type - Total 70 Types 31/9/5/4/2/5/7/2/3/2 Lore% 97 Gallery% 96 Achievement% 92 Wizard Run 0 Options --------- Layout 0 ASCII 0 Keyboard 0 Movement Numpad Keybinds 0 Fullscreen 2 Font 18/SmallcapsGlow Map View 76x50 Zoom Use 4% Tactical HUD 1 Map Filters NONE Filters NONE Steam 1 RUN: bf20219b-ba6b-4ece-a115-daf06157ebf1